fUST/lending_fUST_20250323
["ID","MTS","AMOUNT","RATE_DAILY","PERIOD"]
[356581340,1742725632424,-399.50841706,0.00014356,2]
[356581341,1742725632447,-500.0,0.00014356,2]
[356581342,1742725632471,-2437.83295717,0.00014356,2]
[356581343,1742725632494,-500.0,0.00014356,2]
[356581344,1742725632518,-2437.83295717,0.00014356,2]
[356581345,1742725632540,-179.74258259,0.00014356,2]
[356581346,1742725632562,-500.0,0.00014356,2]
[356581347,1742725632584,-1370.74354979,0.00014356,2]
[356581348,1742725633825,-187.25236954,0.00014356,2]
[356581349,1742725650121,-258.16253251,0.00013362,2]
[356581361,1742725683778,-202.42270964,0.00013362,2]
[356581366,1742725700987,-176.22338134,0.00013362,2]
[356581368,1742725708897,-160.0,0.00013362,2]
[356581370,1742725713733,-155.84220323,0.00013362,2]
[356581371,1742725721282,149.999999,8e-05,5]
[356581373,1742725744412,-150.0,0.00013362,2]
[356581374,1742725751006,-156.01943339,0.00013362,2]
[356581375,1742725752128,-426.38078069,0.00013362,2]
[356581376,1742725752149,-1271.43396576,0.00014256,2]
[356581377,1742725752171,-300.0,0.00014354,2]
[356581378,1742725752192,-8223.27455561,0.00014355,2]
[356581379,1742725752215,-287.79165136,0.00014355,2]
[356581380,1742725752236,-500.0,0.00014355,2]
[356581381,1742725752258,-244.81795638,0.00014355,2]
[356581382,1742725752280,-500.0,0.00014355,2]
[356581383,1742725752304,-5604.7746875,0.00014355,2]
[356581384,1742725752324,-197.48293301,0.00014355,2]
[356581385,1742725752347,-5604.7746875,0.00014355,2]
[356581386,1742725752370,-500.0,0.00014355,2]
[356581387,1742725752394,-5433.01253866,0.00014355,2]
[356581389,1742725760123,-171.76214884,0.00014355,2]
[356581390,1742725760147,-500.0,0.00014355,2]
[356581391,1742725760170,-5604.7746875,0.00014355,2]
[356581392,1742725760193,-500.0,0.00014355,2]
[356581393,1742725760217,-5604.7746875,0.00014355,2]
[356581394,1742725760240,-500.0,0.00014355,2]
[356581395,1742725760262,-5604.7746875,0.00014355,2]
[356581396,1742725760284,-500.0,0.00014355,2]
[356581397,1742725760305,-5604.7746875,0.00014355,2]
[356581398,1742725760328,-500.0,0.00014355,2]
[356581399,1742725760349,-5604.7746875,0.00014355,2]
[356581400,1742725760371,-500.0,0.00014355,2]
[356581401,1742725760392,-5604.7746875,0.00014355,2]
[356581402,1742725760412,-5604.7746875,0.00014355,2]
[356581403,1742725760433,-500.0,0.00014355,2]
[356581404,1742725760454,-500.0,0.00014355,2]
[356581405,1742725760475,-5604.7746875,0.00014355,2]
[356581406,1742725760495,-500.0,0.00014355,2]
[356581407,1742725760516,-5604.7746875,0.00014355,2]
[356581408,1742725760537,-5604.7746875,0.00014355,2]
[356581409,1742725760559,-500.0,0.00014355,2]
[356581410,1742725760580,-5604.7746875,0.00014355,2]
[356581411,1742725760601,-481.07557988,0.00014355,2]
[356581412,1742725760787,-18.92442012,0.00014355,2]
[356581413,1742725760814,-412.03207988,0.00014355,2]
[356581414,1742725762354,-5192.74260762,0.00014355,2]
[356581415,1742725762386,-500.0,0.00014355,2]
[356581416,1742725762413,-5604.7746875,0.00014355,2]
[356581417,1742725762437,-500.0,0.00014355,2]
[356581418,1742725762461,-5604.7746875,0.00014355,2]
[356581419,1742725762485,-500.0,0.00014355,2]
[356581420,1742725762508,-5604.7746875,0.00014355,2]
[356581421,1742725762531,-607.26847232,0.00014355,2]
[356581422,1742725762556,-5604.7746875,0.00014355,2]
[356581423,1742725762580,-5604.7746875,0.00014355,2]
[356581424,1742725762601,-500.0,0.00014355,2]
[356581425,1742725762623,-500.0,0.00014355,2]
[356581426,1742725762646,-5604.7746875,0.00014355,2]
[356581427,1742725762670,-5604.7746875,0.00014355,2]
[356581428,1742725762696,-5604.7746875,0.00014355,2]
[356581429,1742725762719,-500.0,0.00014355,2]
[356581430,1742725762743,-5604.7746875,0.00014355,2]
[356581431,1742725762765,-500.0,0.00014355,2]
[356581432,1742725762787,-5604.7746875,0.00014355,2]
[356581433,1742725762808,-500.0,0.00014355,2]
[356581434,1742725762830,-5604.7746875,0.00014355,2]
[356581435,1742725762853,-500.0,0.00014355,2]
[356581436,1742725762875,-5604.7746875,0.00014355,2]
[356581437,1742725762898,-5604.7746875,0.00014355,2]
[356581438,1742725762921,-500.0,0.00014355,2]
[356581439,1742725762943,-5604.7746875,0.00014355,2]
[356581440,1742725762964,-500.0,0.00014355,2]
[356581441,1742725762991,-5604.7746875,0.00014355,2]
[356581442,1742725763014,-5604.7746875,0.00014355,2]
[356581443,1742725763036,-5604.7746875,0.00014355,2]
[356581444,1742725763060,-5604.7746875,0.00014355,2]
[356581445,1742725763084,-5604.7746875,0.00014355,2]
[356581446,1742725763108,-5604.7746875,0.00014355,2]
[356581447,1742725763132,-500.0,0.00014355,2]
[356581448,1742725763158,-5604.7746875,0.00014355,2]
[356581449,1742725763183,-5604.7746875,0.00014355,2]
[356581450,1742725763208,-5604.7746875,0.00014355,2]
[356581451,1742725763232,-5604.7746875,0.00014355,2]
[356581452,1742725763256,-5604.7746875,0.00014355,2]
[356581453,1742725763280,-5604.7746875,0.00014355,2]
[356581454,1742725763304,-5604.7746875,0.00014355,2]
[356581455,1742725763330,-5604.7746875,0.00014355,2]
[356581456,1742725763353,-5604.7746875,0.00014355,2]
[356581457,1742725763377,-5604.7746875,0.00014355,2]
[356581458,1742725763399,-5604.7746875,0.00014355,2]
[356581459,1742725763421,-5604.7746875,0.00014355,2]
[356581460,1742725763443,-5604.7746875,0.00014355,2]
[356581461,1742725763466,-5604.7746875,0.00014355,2]
[356581462,1742725763489,-5604.7746875,0.00014355,2]
[356581463,1742725763514,-5604.7746875,0.00014355,2]
[356581464,1742725763537,-5604.7746875,0.00014355,2]
[356581465,1742725763559,-5604.7746875,0.00014355,2]
[356581466,1742725763583,-5604.7746875,0.00014355,2]
[356581467,1742725763605,-500.0,0.00014355,2]
[356581468,1742725763626,-5489.38226747,0.00014355,2]
[356581469,1742725763648,-5489.38226747,0.00014355,2]
[356581470,1742725763670,-5489.38226747,0.00014355,2]
[356581471,1742725763692,-5489.38226747,0.00014355,2]
[356581472,1742725763714,-5489.38226747,0.00014355,2]
[356581473,1742725763737,-5489.38226747,0.00014355,2]
[356581474,1742725763760,-5489.38226747,0.00014355,2]
[356581475,1742725763783,-5489.38226747,0.00014355,2]
[356581476,1742725763809,-5489.38226747,0.00014355,2]
[356581477,1742725763832,-5489.38226747,0.00014355,2]
[356581478,1742725763854,-5489.38226747,0.00014355,2]
[356581479,1742725763878,-5489.38226747,0.00014355,2]
[356581480,1742725763902,-5489.38226747,0.00014355,2]
[356581481,1742725763926,-5489.38226747,0.00014355,2]
[356581482,1742725763950,-5489.38226747,0.00014355,2]
[356581483,1742725763972,-5489.38226747,0.00014355,2]
[356581484,1742725763995,-5489.38226747,0.00014355,2]
[356581485,1742725764018,-5489.38226747,0.00014355,2]
[356581486,1742725764040,-5489.38226747,0.00014355,2]
[356581487,1742725764061,-5489.38226747,0.00014355,2]
[356581488,1742725764083,-5489.38226747,0.00014355,2]
[356581489,1742725764105,-5489.38226747,0.00014355,2]
[356581490,1742725764126,-5489.38226747,0.00014355,2]
[356581491,1742725764152,-5489.38226747,0.00014355,2]
[356581492,1742725764174,-5489.38226747,0.00014355,2]
[356581493,1742725764198,-5489.38226747,0.00014355,2]
[356581494,1742725764222,-5489.38226747,0.00014355,2]
[356581495,1742725764245,-5489.38226747,0.00014355,2]
[356581496,1742725764267,-5489.38226747,0.00014355,2]
[356581497,1742725764290,-5489.38226747,0.00014355,2]
[356581498,1742725764311,-5489.38226747,0.00014355,2]
[356581499,1742725764333,-5489.38226742,0.00014355,2]
[356581500,1742725764356,-5489.38226742,0.00014355,2]
[356581501,1742725764378,-5489.38226742,0.00014355,2]
[356581502,1742725764399,-500.0,0.00014356,2]
[356581503,1742725764419,-1769.59661029,0.00014356,2]
[356581504,1742725764549,-5917.49338971,0.00014356,2]
[356581505,1742725764581,-1972.05,0.00014356,2]
[356581506,1742725764603,-500.0,0.00014358,2]
[356581507,1742725764624,-687.0,0.00014358,2]
[356581508,1742725764644,-500.0,0.00014358,2]
[356581509,1742725764665,-783.28641817,0.00014358,2]
[356581510,1742725771169,-3396.33358183,0.00014358,2]
[356581511,1742725771191,-3617.33,0.00014358,2]
[356581512,1742725771211,-1312.55,0.00014358,2]
[356581513,1742725771232,-500.0,0.00014358,2]
[356581514,1742725771253,-1497.53,0.00014358,2]
[356581515,1742725771272,-500.0,0.00014358,2]
[356581516,1742725771293,-500.0,0.00014358,2]
[356581517,1742725771313,-500.0,0.00014358,2]
[356581518,1742725771335,-500.0,0.00014359,2]
[356581519,1742725771357,-3496.43,0.00014359,2]
[356581520,1742725771378,-694.78,0.00014359,2]
[356581521,1742725771400,-500.0,0.00014359,2]
[356581522,1742725771429,-1325.11,0.00014359,2]
[356581523,1742725771451,-5563.05,0.00014359,2]
[356581524,1742725771474,-4666.14,0.00014359,2]
[356581525,1742725771496,-500.0,0.00014359,2]
[356581526,1742725771519,-669.01,0.00014359,2]
[356581527,1742725771540,-248.39232259,0.00014359,2]
[356581528,1742725771562,-29091.14509827,0.00014359,2]
[356581529,1742725771585,-500.0,0.00014373,2]
[356581530,1742725771612,-500.0,0.00014373,2]
[356581531,1742725771636,-500.0,0.00014373,2]
[356581532,1742725771659,-500.0,0.00014373,2]
[356581533,1742725771680,-500.0,0.00014373,2]
[356581534,1742725771701,-500.0,0.00014373,2]
[356581535,1742725771723,-500.0,0.00014373,2]
[356581536,1742725771744,-500.0,0.00014373,2]
[356581537,1742725771765,-500.0,0.00014373,2]
[356581538,1742725771786,-500.0,0.00014373,2]
[356581539,1742725771807,-500.0,0.00014373,2]
[356581540,1742725771829,-500.0,0.00014373,2]
[356581541,1742725771850,-500.0,0.00014373,2]
[356581542,1742725771871,-500.0,0.00014373,2]
[356581543,1742725771892,-502.99435575,0.00014373,2]
[356581544,1742725771913,-500.0,0.00014373,2]
[356581545,1742725771934,-508.49508392,0.00014373,2]
[356581546,1742725771955,-500.0,0.00014373,2]
[356581547,1742725771975,-500.0,0.00014373,2]
[356581548,1742725771996,-500.0,0.00014373,2]
[356581549,1742725772017,-500.0,0.00014373,2]
[356581550,1742725772038,-500.0,0.00014373,2]
[356581551,1742725772059,-500.0,0.00014373,2]
[356581552,1742725772080,-500.0,0.0001463,2]
[356581553,1742725772102,-7687.09,0.0001463,2]
[356581554,1742725772125,-1972.05,0.0001463,2]
[356581555,1742725772148,-500.0,0.00014632,2]
[356581556,1742725772171,-687.0,0.00014632,2]
[356581557,1742725772192,-500.0,0.00014632,2]
[356581558,1742725772218,-4179.62,0.00014632,2]
[356581559,1742725772239,-3617.33,0.00014632,2]
[356581560,1742725772262,-1312.55,0.00014632,2]
[356581561,1742725772284,-500.0,0.00014632,2]
[356581562,1742725772307,-1497.53,0.00014632,2]
[356581563,1742725772328,-500.0,0.00014632,2]
[356581564,1742725772349,-500.0,0.00014632,2]
[356581565,1742725772371,-500.0,0.00014633,2]
[356581566,1742725772393,-3496.43,0.00014633,2]
[356581567,1742725772414,-694.78,0.00014633,2]
[356581568,1742725772436,-500.0,0.00014633,2]
[356581569,1742725772458,-1325.11,0.00014633,2]
[356581570,1742725772480,-5563.05,0.00014633,2]
[356581571,1742725772501,-4666.14,0.00014633,2]
[356581572,1742725772523,-500.0,0.00014633,2]
[356581573,1742725772546,-669.01,0.00014633,2]
[356581574,1742725772568,-152.0,0.00014763,2]
[356581575,1742725772589,-500.0,0.00014904,2]
[356581576,1742725772611,-7687.09,0.00014904,2]
[356581577,1742725772633,-1972.05,0.00014904,2]
[356581578,1742725772655,-500.0,0.00014906,2]
[356581579,1742725772676,-687.0,0.00014906,2]
[356581580,1742725772699,-500.0,0.00014906,2]
[356581581,1742725772722,-4179.62,0.00014906,2]
[356581582,1742725772745,-3617.33,0.00014906,2]
[356581583,1742725772768,-1312.55,0.00014906,2]
[356581584,1742725772790,-500.0,0.00014906,2]
[356581585,1742725772813,-1497.53,0.00014906,2]
[356581586,1742725772837,-500.0,0.00014906,2]
[356581587,1742725772859,-500.0,0.00014906,2]
[356581588,1742725772882,-500.0,0.00014907,2]
[356581589,1742725772904,-3496.43,0.00014907,2]
[356581590,1742725772927,-694.78,0.00014907,2]
[356581591,1742725772951,-500.0,0.00014907,2]
[356581592,1742725772975,-1325.11,0.00014907,2]
[356581593,1742725772999,-4220.26472807,0.00014907,2]
[356581594,1742725788233,-271.0826162,0.00014356,2]
[356581605,1742725800533,-228.9173838,0.00014356,2]
[356581606,1742725800557,-253.33431037,0.00014358,2]
[356581607,1742725808435,346.8,0.00010959,2]
[356581608,1742725810013,-164.0984,0.00014356,2]
[356581609,1742725813938,-152.67,0.00014356,2]
[356581611,1742725816551,-154.4112854,0.00014356,2]
[356581612,1742725821486,-28.8203146,0.00014356,2]
[356581613,1742725821509,-121.1796854,0.00014356,2]
[356581616,1742725826545,-150.0,0.00014356,2]
[356581630,1742725832691,-115.39476499,0.00014356,2]
[356581631,1742725832701,-336.32755119,0.00014356,2]
[356581633,1742725833757,-150.0,0.00014356,2]
[356581650,1742725838593,-114.80244881,0.00014356,2]
[356581651,1742725838603,-500.0,0.00014356,2]
[356581652,1742725838613,-500.0,0.00014356,2]
[356581653,1742725838622,-500.0,0.00014356,2]
[356581654,1742725838632,-500.0,0.00014356,2]
[356581655,1742725838641,-300.0,0.00014357,2]
[356581656,1742725838651,-246.66568963,0.00014358,2]
[356581657,1742725838661,-500.0,0.00014358,2]
[356581658,1742725838671,-3773.88,0.00014358,2]
[356581659,1742725838680,-3633.72,0.00014358,2]
[356581660,1742725838690,-2163.34,0.00014358,2]
[356581661,1742725838699,-979.71,0.00014358,2]
[356581662,1742725838708,-711.80638531,0.00014358,2]
[356581663,1742725838718,-500.0,0.00014358,2]
[356581665,1742725838727,-711.80638531,0.00014358,2]
[356581666,1742725838736,-500.0,0.00014358,2]
[356581668,1742725838746,-711.80638531,0.00014358,2]
[356581670,1742725838755,-511.91871915,0.00014358,2]
[356581672,1742725838765,-711.80638531,0.00014358,2]
[356581673,1742725838774,-711.80638531,0.00014358,2]
[356581674,1742725838784,-711.80638531,0.00014358,2]
[356581675,1742725838793,-711.80638531,0.00014358,2]
[356581676,1742725838802,-711.80638531,0.00014358,2]
[356581677,1742725838813,-711.80638531,0.00014358,2]
[356581678,1742725838823,-711.80638531,0.00014358,2]
[356581679,1742725838832,-711.80638531,0.00014358,2]
[356581680,1742725838841,-711.80638531,0.00014358,2]
[356581681,1742725838850,-711.80638531,0.00014358,2]
[356581682,1742725838859,-711.80638531,0.00014358,2]
[356581683,1742725838869,-711.80638531,0.00014358,2]
[356581684,1742725838878,-711.80638531,0.00014358,2]
[356581685,1742725838887,-711.80638531,0.00014358,2]
[356581686,1742725838897,-711.80638531,0.00014358,2]
[356581687,1742725838906,-711.80638531,0.00014358,2]
[356581688,1742725838916,-16.48701401,0.00014358,2]
[356581690,1742725838941,-695.3193713,0.00014358,2]
[356581691,1742725838951,-711.80638531,0.00014358,2]
[356581692,1742725838960,-711.80638531,0.00014358,2]
[356581693,1742725838971,-711.80638531,0.00014358,2]
[356581694,1742725838980,-711.80638531,0.00014358,2]
[356581695,1742725838990,-711.80638531,0.00014358,2]
[356581696,1742725839001,-711.80638531,0.00014358,2]
[356581697,1742725839010,-711.80638531,0.00014358,2]
[356581698,1742725839019,-711.80638531,0.00014358,2]
[356581699,1742725839029,-711.80638531,0.00014358,2]
[356581700,1742725839039,-711.80638531,0.00014358,2]
[356581701,1742725839048,-711.80638531,0.00014358,2]
[356581702,1742725839058,-711.80638531,0.00014358,2]
[356581703,1742725839067,-711.80638531,0.00014358,2]
[356581704,1742725839076,-711.80638531,0.00014358,2]
[356581705,1742725839086,-711.80638531,0.00014358,2]
[356581706,1742725839096,-711.80638531,0.00014358,2]
[356581707,1742725839106,-711.80638531,0.00014358,2]
[356581708,1742725839115,-711.80638531,0.00014358,2]
[356581709,1742725839125,-711.80638531,0.00014358,2]
[356581710,1742725839135,-711.80638531,0.00014358,2]
[356581711,1742725839144,-711.80638531,0.00014358,2]
[356581712,1742725839153,-711.80638531,0.00014358,2]
[356581713,1742725839164,-711.80638531,0.00014358,2]
[356581714,1742725839174,-711.80638531,0.00014358,2]
[356581715,1742725839184,-711.80638531,0.00014358,2]
[356581716,1742725839193,-711.80638531,0.00014358,2]
[356581717,1742725839206,-711.80638531,0.00014358,2]
[356581718,1742725839215,-711.80638531,0.00014358,2]
[356581719,1742725839224,-711.80638531,0.00014358,2]
[356581720,1742725839234,-711.80638531,0.00014358,2]
[356581721,1742725839245,-711.80638531,0.00014358,2]
[356581722,1742725839254,-711.80638531,0.00014358,2]
[356581723,1742725839263,-711.80638531,0.00014358,2]
[356581724,1742725839272,-711.80638531,0.00014358,2]
[356581725,1742725839282,-500.0,0.00014359,2]
[356581726,1742725839291,-1032.83,0.00014359,2]
[356581727,1742725839301,-521.97,0.00014359,2]
[356581728,1742725839310,-500.0,0.00014359,2]
[356581729,1742725839320,-680.95,0.00014359,2]
[356581730,1742725839330,-501.76101532,0.00014373,2]
[356581731,1742725839340,-500.0,0.00014373,2]
[356581732,1742725839350,-500.0,0.0001463,2]
[356581733,1742725839359,-125.89405615,0.0001463,2]
[356581805,1742725844162,-500.0,0.00014356,2]
[356581806,1742725844173,-374.10594385,0.0001463,2]
[356581807,1742725844183,-601.13,0.0001463,2]
[356581808,1742725844194,-500.0,0.0001463,2]
[356581809,1742725844204,-261.65980523,0.0001463,2]
[356581810,1742725844560,-43.11489068,0.0001463,2]
[356581813,1742725846865,-66.49432562,0.0001463,2]
[356581815,1742726026775,190.049171,0.00013438,120]
[356581824,1742726283195,-203.3606391,0.00013172,2]
[356581825,1742726298455,-275.08581269,0.00013183,2]
[356581826,1742726300653,-269.3797874,0.00013051,2]
[356581827,1742726314051,-223.96826078,0.00013051,2]
[356581830,1742726347511,-255.68244128,0.00013051,2]
[356581831,1742726373588,-200.0,0.00013051,2]
[356581832,1742726402756,-181.323074,0.00013051,2]
[356581834,1742726426218,178.928453,0.00010959,2]
[356581835,1742726438861,-218.86736841,0.00012308,2]
[356581839,1742726465603,-285.21772863,0.00012308,2]
[356581841,1742726486749,-165.03549918,0.00012308,2]
[356581842,1742726499124,-152.0,0.00012185,2]
[356581843,1742726522469,-487.56347564,0.00012185,2]
[356581845,1742726545858,-158.0944893,0.00012185,2]
[356581846,1742726555010,-240.89095306,0.00012185,2]
[356581847,1742726559015,-176.93304614,0.00012185,2]
[356581850,1742726583095,-165.3413061,0.00012185,2]
[356581852,1742726644528,-150.0,0.00012185,2]
[356581854,1742726673213,-155.4504,0.00012234,2]
[356581855,1742726673486,5000.0,0.00012002,2]
[356581856,1742726678471,-208.0888796,0.00012234,2]
[356581857,1742726678494,-101.9111204,0.00012308,2]
[356581858,1742726685151,-239.10381584,0.00012185,2]
[356581859,1742726702795,-176.40567201,0.00012185,2]
[356581860,1742726719396,-150.43546325,0.00012185,2]
[356581861,1742726728363,-179.74606632,0.00012185,2]
[356581862,1742726734586,346.79,0.00010959,2]
[356581863,1742726759114,-4254.30898258,0.00012185,2]
[356581864,1742726759136,-547.25044448,0.00012308,2]
[356581865,1742726759156,-202.75822177,0.00013,2]
[356581866,1742726759176,-155.46136762,0.00013105,2]
[356581867,1742726759199,-2060.2803829,0.00013105,2]
[356581872,1742726826132,-3346.1454305,0.00012974,2]
[356581873,1742726826155,-431.59835162,0.00013105,2]
[356581874,1742726826177,-348.60977354,0.00013176,2]
[356581875,1742726826902,-208.30949799,0.00013176,2]
[356581876,1742726844073,-43.08072847,0.00013176,2]
[356581877,1742726844095,-300.0,0.00013177,2]
[356581878,1742726844117,-500.0,0.00013178,2]
[356581879,1742726844138,-446.72377958,0.00013178,2]
[356581880,1742726845103,-53.27622042,0.00013178,2]
[356581881,1742726845125,-107.17697406,0.00013178,2]
[356581882,1742726850090,-61.57378618,0.00013178,2]
[356581883,1742726850113,-109.64510102,0.00013178,2]
[356581885,1742726868968,173.4,0.00010959,2]
[356581888,1742726914388,-300.0,0.00013177,2]
[356581889,1742726914415,-84.2299978,0.00013177,2]
[356581890,1742726927444,-198.30041947,0.00012429,2]
[356581891,1742726945130,-51.69958053,0.00012429,2]
[356581892,1742726945152,-300.0,0.00013176,2]
[356581893,1742726945175,-415.7700022,0.00013177,2]
[356581894,1742726945197,-500.0,0.00013177,2]
[356581895,1742726945218,-500.0,0.00013177,2]
[356581896,1742726945240,-500.0,0.00013177,2]
[356581897,1742726945261,-500.0,0.00013177,2]
[356581898,1742726945284,-500.0,0.00013177,2]
[356581899,1742726945306,-500.0,0.00013177,2]
[356581900,1742726945328,-500.0,0.00013177,2]
[356581901,1742726945352,-500.0,0.00013177,2]
[356581902,1742726945374,-500.0,0.00013177,2]
[356581903,1742726945396,-500.0,0.00013177,2]
[356581904,1742726945418,-500.0,0.00013177,2]
[356581905,1742726945439,-500.0,0.00013177,2]
[356581906,1742726945460,-500.0,0.00013177,2]
[356581907,1742726945481,-500.0,0.00013177,2]
[356581908,1742726945502,-500.0,0.00013177,2]
[356581909,1742726945524,-500.0,0.00013177,2]
[356581910,1742726945544,-500.0,0.00013177,2]
[356581911,1742726945565,-500.0,0.00013177,2]
[356581912,1742726945585,-265.61506279,0.00013177,2]
[356581913,1742726945606,-500.0,0.00013177,2]
[356581914,1742726945627,-500.0,0.00013177,2]
[356581915,1742726945648,-500.0,0.00013177,2]
[356581916,1742726945671,-500.0,0.00013177,2]
[356581917,1742726945693,-500.0,0.00013177,2]
[356581918,1742726945713,-500.0,0.00013177,2]
[356581919,1742726945735,-181.59525176,0.00013177,2]
[356581920,1742726945756,-500.0,0.00013177,2]
[356581921,1742726945779,-500.0,0.00013177,2]
[356581922,1742726945800,-500.0,0.00013177,2]
[356581923,1742726945824,-500.0,0.00013177,2]
[356581924,1742726945846,-500.0,0.00013177,2]
[356581925,1742726945868,-500.0,0.00013177,2]
[356581926,1742726945890,-500.0,0.00013177,2]
[356581927,1742726945911,-500.0,0.00013177,2]
[356581928,1742726945933,-500.0,0.00013177,2]
[356581929,1742726945955,-500.0,0.00013177,2]
[356581930,1742726945979,-500.0,0.00013177,2]
[356581931,1742726946002,-500.0,0.00013177,2]
[356581932,1742726946024,-500.0,0.00013177,2]
[356581933,1742726946046,-500.0,0.00013177,2]
[356581934,1742726946068,-500.0,0.00013177,2]
[356581935,1742726946096,-500.0,0.00013177,2]
[356581936,1742726946119,-500.0,0.00013183,2]
[356581937,1742726946139,-500.0,0.00013183,2]
[356581938,1742726946164,-500.0,0.00013183,2]
[356581939,1742726946186,-169.07947767,0.00013183,2]
[356581940,1742726946209,-219.5027582,0.00013183,2]
[356581941,1742726946233,-8960.33832027,0.00013184,2]
[356581942,1742726946324,-15939.66167973,0.00013184,2]
[356581943,1742726946347,-500.0,0.00013205,2]
[356581944,1742726946368,-155.4613676,0.0001327,2]
[356581945,1742726946389,-500.0,0.00013304,2]
[356581946,1742726946409,-519.9485615,0.00013305,2]
[356581947,1742726946429,-500.0,0.00013434,2]
[356581948,1742726946450,-155.4613676,0.00013434,2]
[356581949,1742726946471,-190.049171,0.00013438,2]
[356581950,1742726946492,-400.0000009,0.0001355,2]
[356581951,1742726946513,-155.4613676,0.00013599,2]
[356581952,1742726946534,-1000.0,0.000136,2]
[356581953,1742726946554,-500.0,0.00013631,2]
[356581954,1742726946574,-178.9976,0.00013632,2]
[356581955,1742726946595,-500.0,0.00013673,2]
[356581956,1742726946616,-500.0,0.00013673,2]
[356581957,1742726946637,-500.0,0.00013673,2]
[356581958,1742726946657,-513.92048078,0.00013673,2]
[356581959,1742726946678,-500.0,0.00013673,2]
[356581960,1742726946699,-503.04053563,0.00013673,2]
[356581961,1742726946719,-500.0,0.00013673,2]
[356581962,1742726946741,-500.0,0.00013673,2]
[356581963,1742726946763,-500.0,0.00013673,2]
[356581964,1742726946783,-500.0,0.00013673,2]
[356581965,1742726946805,-502.03946795,0.00013673,2]
[356581966,1742726946830,-500.0,0.00013673,2]
[356581967,1742726946850,-157.75660753,0.00013673,2]
[356581968,1742726946872,-500.0,0.00013673,2]
[356581969,1742726946894,-500.0,0.00013673,2]
[356581970,1742726946915,-500.0,0.00013673,2]
[356581971,1742726946937,-426.2271616,0.00013673,2]
[356581972,1742726946958,-184.74938508,0.00013673,2]
[356581973,1742726946978,-500.0,0.00013673,2]
[356581974,1742726946999,-500.0,0.00013673,2]
[356581975,1742726947021,-500.0,0.00013673,2]
[356581976,1742726947044,-500.0,0.00013673,2]
[356581977,1742726947065,-500.0,0.00013673,2]
[356581978,1742726947086,-160.65797133,0.00013673,2]
[356581979,1742726947108,-153.27139214,0.00013673,2]
[356581980,1742726947129,-166.60159252,0.00013673,2]
[356581981,1742726947151,-502.03221375,0.00013673,2]
[356581982,1742726947174,-503.18092877,0.00013673,2]
[356581983,1742726947196,-500.0,0.00013673,2]
[356581984,1742726947217,-505.47395646,0.00013673,2]
[356581985,1742726947241,-292.19234979,0.00013673,2]
[356581986,1742726947265,-500.0,0.00013673,2]
[356581987,1742726947287,-211.19307523,0.00013673,2]
[356581988,1742726947308,-177.09330219,0.00013673,2]
[356581989,1742726947330,-505.38305308,0.00013673,2]
[356581990,1742726947352,-502.37001931,0.00013673,2]
[356581991,1742726947373,-163.61705144,0.00013673,2]
[356581992,1742726947395,-197.86568055,0.00013673,2]
[356581993,1742726947416,-500.0,0.00013673,2]
[356581994,1742726947438,-502.2511568,0.00013673,2]
[356581995,1742726947460,-500.0,0.00013673,2]
[356581996,1742726947483,-500.0,0.00013673,2]
[356581997,1742726947505,-151.0,0.00013691,2]
[356581998,1742726947529,-500.0,0.00013698,2]
[356581999,1742726947552,-500.0,0.00013698,2]
[356582000,1742726947576,-500.0,0.00013698,2]
[356582001,1742726947599,-500.0,0.00013698,2]
[356582002,1742726947622,-500.0,0.00013698,2]
[356582003,1742726947646,-500.0,0.00013698,2]
[356582004,1742726947669,-663.99,0.00013698,2]
[356582005,1742726947691,-500.0,0.00013698,2]
[356582006,1742726947714,-500.0,0.00013698,2]
[356582007,1742726947738,-500.0,0.00013698,2]